Cogmind - Beta 16 @@@ ROGUE MODE // 2026.01.21 @ 18:40:43 Player: DreamCore Result: Smashed by cave-in Performance ------------- Evolutions (3) 1500 Regions Visited (10) 2000 Robots Destroyed (158) 790 Value Destroyed (5182) 5182 Prototype IDs (31) 620 Alien Tech Used (0) 0 Bonus (1791) 1791 TOTAL SCORE: 11883 Bonus ------- High Alert Combat Kills 486 Follower Combat Kills 356 Entered Garrisons 200 Used RIF Installer 500 Aligned with FarCom 300 Friendly Fire -51 Cogmind --------- Core Integrity 0/700 Matter 167/300 Energy 281/290 System Corruption 29% Temperature Warm (124) Movement Walking (193) Ox1 Location -7/Factory Parts ------- > --- POWER (1) -------- Improved Deuterium Engine > --- PROPULSION (5) --- Carbon-fiber Leg Improved Titanium Leg Myomer Leg > --- UTILITY (5) ------ Huge Storage Unit Advanced Weight Redist. System Advanced Targeting Computer Improved Medium Armor Plating > --- WEAPON (2) ------- Heavy Flak Cannon > --- INVENTORY (25) --- Improved Deuterium Engine Improved Deuterium Engine Improved Deuterium Engine Cryofiber Web Improved Cooling System Superbattery (1500) Transmission Jammer Improved Phase Shifter Hardened Heavy Armor Plating System Shield Authchip [R/NC] Authchip [R/Combat] Relay Coupler [NC] (26) Precision Shock Rifle Precision Beam Rifle Plasma Cannon Missile Launcher Heavy Flail Peak State ------------ > --- POWER ------------ Light Antimatter Reactor > --- PROPULSION ------- Aluminum Leg Carbon-fiber Leg Improved Carbon-fiber Leg Myomer Leg Biometal Leg > --- UTILITY ---------- Cryofiber Web Advanced Heat Sink Huge Storage Unit Improved Signal Interpreter Advanced Targeting Computer > --- WEAPON ----------- Precision Beam Rifle Gatling Laser > --- INVENTORY -------- Improved Deuterium Engine Aluminum Leg Carbon-fiber Leg Carbon-fiber Leg Improved Titanium Leg Myomer Leg Improved Cooling System Superbattery Advanced Visual Processing Unit Transmission Jammer Improved Phase Shifter Hardened Heavy Armor Plating Improved Light Armor Plating Improved Medium Armor Plating Reflective Plating Authchip [R/NC] Authchip [R/Combat] Relay Coupler [NC] Arc Projector Beamcaster Plasma Cannon Heavy Flak Cannon Missile Launcher Heavy Flail [Rating: 63] Favorites ----------- Power Cooled Ion Engine Engine Cooled Ion Engine Power Core Nuclear Core Reactor Light Antimatter Reactor Propulsion Improved Treads Treads Improved Treads Leg Titanium Leg Flight Unit Xenon Bombardment Thruster Utility Huge Storage Unit Device Improved Heat Sink Storage Huge Storage Unit Processor Improved Targeting Computer Hackware Hacking Suite Protection Light Armor Plating Weapon Spread Laser Energy Gun Spread Laser Energy Cannon Beam Cannon Ballistic Gun Light Assault Rifle Ballistic Cannon Improved Light Cannon Launcher Rocket Launcher Impact Weapon Hammer Build | -11 -10 -10 -9 -9 -9 -8 -8 -7 -7 -7 ------- Run | Yrd Mat Min Mat Min Exi Min Mat Fac Gar Fac Slots Evolved 6 | . . . 2 . . . 2 2 . . Power . | . . . . . . . . . . . Propulsion 3 | . . . . . . . 1 2 . . Utility 3 | . . . 2 . . . 1 . . . Weapon . | . . . . . . . . . . . Parts Attached 110 | . 19 2 20 3 . 4 18 2 17 25 Power 13 | . 2 1 2 . . 1 2 . 3 2 Engine 9 | . 2 1 1 . . 1 . . 2 2 Core 3 | . . . 1 . . . 2 . . . Reactor 1 | . . . . . . . . . 1 . Propulsion 32 | . 7 . 3 . . 1 5 1 5 10 Treads 7 | . 2 . 3 . . 1 1 . . . Leg 24 | . 5 . . . . . 4 1 5 9 Wheel . | . . . . . . . . . . . Hover . | . . . . . . . . . . . Flight 1 | . . . . . . . . . . 1 Utility 29 | . 5 . 8 . . 1 2 1 5 7 Device 13 | . 1 . 4 . . 1 1 . 4 2 Storage 3 | . 2 . . . . . 1 . . . Processor 5 | . . . 3 . . . . 1 1 . Hackware 1 | . . . . . . . . . . 1 Protection 7 | . 2 . 1 . . . . . . 4 Artifact . | . . . . . . . . . . . Weapon 36 | . 5 1 7 3 . 1 9 . 4 6 Energy Gun 23 | . 1 . 7 1 . . 6 . 2 6 Energy Cannon 3 | . 2 . . . . . 1 . . . Ballistic Gun 2 | . 1 . . 1 . . . . . . Ballistic Cannon 3 | . . 1 . . . . . . 2 . Launcher 3 | . . . . 1 . 1 1 . . . Special Weapon . | . . . . . . . . . . . Impact Weapon 2 | . 1 . . . . . 1 . . . Slashing Weapon . | . . . . . . . . . . . Piercing Weapon . | . . . . . . . . . . . Special Melee Weapon . | . . . . . . . . . . . Unidentified Prototypes 5 | . . . 2 1 . . . . . 2 Corrupted Parts 1 | . . . . . . . . . . 1 System Corruption 1 | . . . . . . . . . . 1 Parts Lost 35 | . . 2 3 . . 2 8 . 2 18 Power 4 | . . 1 . . . 1 1 . . 1 Propulsion 13 | . . . . . . 1 2 . 2 8 Utility 8 | . . 1 1 . . . . . . 6 Weapon 10 | . . . 2 . . . 5 . . 3 Highest Loss Streak 7 | . . 1 1 . . 1 3 . 1 7 To Critical Strikes . | . . . . . . . . . . . Average Backups 22 | . 10 24 23 23 24 22 23 23 23 23 Power 1 | . 1 1 1 1 1 . . 1 1 1 Propulsion 5 | . 4 6 6 7 7 6 4 2 2 3 Utility 9 | . 2 9 7 6 7 8 10 13 13 12 Weapon 7 | . 2 6 8 9 8 8 8 6 5 6 Tool/Special . | . . . . . . . . . . . Unused Backups 57 | . 7 . 20 . 1 . 2 2 7 18 Power 7 | . . . 1 . . . . . 2 4 Propulsion 13 | . 5 . 7 . . . . . 1 . Utility 26 | . 2 . 6 . . . 1 1 4 12 Weapon 11 | . . . 6 . 1 . 1 1 . 2 Tool/Special . | . . . . . . . . . . . Average Slot Usage (%) 98 | . 98 100 99 100 100 99 89 91 96 99 Engine 7 | . 13 14 9 11 11 10 2 . 3 1 Core 1 | . . . 1 . . . 6 7 2 . Treads 15 | . 4 28 22 22 22 22 20 . . . Leg 12 | . 23 . . . . . 6 37 38 37 Device 9 | . . 2 11 11 11 11 17 10 11 12 Storage 10 | . 14 14 11 11 11 11 9 7 7 7 Processor 13 | . . . 20 22 22 22 9 11 15 14 Protection 3 | . 12 11 1 . . . . . . 2 Energy Gun 12 | . 4 . 18 20 11 14 12 15 11 13 Energy Cannon 3 | . 10 14 1 . . . 3 . . . Ballistic Cannon 2 | . . 14 1 . . . . . 2 . Launcher 1 | . . . . 1 11 7 . . . . Impact Weapon 1 | . 9 . . . . . . . . . Peak Build Rating 63 | . 12 13 23 26 24 27 39 45 59 63 Average Rating 29 | . 7 12 20 24 23 24 34 44 50 57 On Entrance 24 | 6 6 12 13 23 23 24 25 39 45 58 Avg Prop Armor Cover (%) 4 | . . . . . . . 4 . . . Naked Turns . | . . . . . . . . . . . Heaviest Build 114 | 10 93 95 96 97 96 97 104 98 112 114 Greatest Support 102 | 20 46 46 46 46 46 46 69 83 88 102 Greatest Overweight (x) 33 | . 4 2 2 2 2 2 2 1 1 33 Average Overweight (x) 1 | . . 2 1 2 2 1 1 1 1 . Largest Inventory Capacity 25 | . 25 25 25 25 25 25 25 25 25 25 Average Capacity 24 | . 13 25 25 25 25 25 25 25 25 25 Most Carried 25 | . 25 25 25 25 25 25 25 25 25 25 Average Carried 23 | . 10 24 24 24 24 23 24 24 24 24 Final Capacity 25 | 8 25 25 25 25 25 25 25 25 25 25 Final Carried 25 | 6 25 25 25 25 25 23 25 25 24 19 Scrap Suit Usage (%) 18 | . . . . . . . 99 100 44 . Parts Cannibalized 13 | . . . . . . . 10 . 3 . Class Distribution -------------------- 85% | Mutant 14% | Scavenger-Mutant Dominant Class ---------------- Mutant | -10/Materials Mutant | -10/Mines Mutant | -9/Materials Mutant | -9/Mines Mutant | -9/Exiles Mutant | -8/Mines Mutant | -8/Materials Mutant | -7/Factory Mutant | -7/Garrison Scavenger-Mutant | -7/Factory Resources | -11 -10 -10 -9 -9 -9 -8 -8 -7 -7 -7 ----------- Run | Yrd Mat Min Mat Min Exi Min Mat Fac Gar Fac Matter Collected 2167 | 200 300 116 241 10 . 67 430 . 352 451 Remotely . | . . . . . . . . . . . Salvage Created 5747 | . 534 136 850 153 . 217 2084 . 739 1034 Parts 265 | . 23 12 55 3 . 6 96 . 21 49 Haulers Intercepted 10 | . 2 . 3 . . . 2 . . 3 Recyclers Shooed 7 | . . 1 1 . . . 5 . . . Parts Field Recycled . | . . . . . . . . . . . Retrieved Matter . | . . . . . . . . . . . Parts Self-Destructed . | . . . . . . . . . . . Prevented . | . . . . . . . . . . . Parts Restored . | . . . . . . . . . . . Kills | -11 -10 -10 -9 -9 -9 -8 -8 -7 -7 -7 ------- Run | Yrd Mat Min Mat Min Exi Min Mat Fac Gar Fac Combat Hostiles Destroyed 111 | . 10 8 18 3 . 8 31 . 16 17 Melee 6 | . 6 . . . . . . . . . Guns 67 | . 1 . 16 3 . 4 14 . 14 15 Cannons 17 | . 2 8 1 . . . 5 . . 1 AOE 11 | . . . 1 . . 4 6 . . . Classes Destroyed 17 | . 7 1 4 1 . 1 1 . 2 . Worker 7 | . 1 1 1 . . . 1 . . 3 Builder 8 | . . . 3 . . . 4 . . 1 Tunneler 3 | . . 1 . . . . 2 . . . Hauler 10 | . 2 . 3 . . . 2 . . 3 Recycler 9 | . . . 1 1 . . 7 . . . Mechanic 1 | . 1 . . . . . . . . . Operator 2 | . 1 . 1 . . . . . . . Watcher 7 | . 2 . 2 . . . 3 . . . Swarmer 28 | . 3 6 5 . . 4 9 . . 1 Grunt 54 | . 7 2 9 1 . 3 13 . 10 9 Brawler 5 | . . . . 1 . . 2 . 1 1 Duelist 3 | . . . 1 1 . . . . . 1 Sentry 12 | . . . 3 . . . 6 . 2 1 Hunter 2 | . . . . . . 1 . . . 1 Programmer 5 | . . . . . . . . . 2 3 Heavy 1 | . . . . . . . 1 . . . Behemoth 1 | . . . . . . . . . 1 . Best Kill Streak 10 | . 3 3 3 3 . 4 10 . 2 4 Combat Bots Only 7 | . 2 3 3 3 . 4 7 . 2 4 Max Kills in Single Turn 4 | . 1 1 2 1 . 4 4 . 2 3 Gunslinging 1 | . . . 1 . . . . . 1 . Exploded 4 | . . . 1 . . 4 2 . . . Melee 1 | . 1 . . . . . . . . . Uniques/NPCs Destroyed . | . . . . . . . . . . . Combat | -11 -10 -10 -9 -9 -9 -8 -8 -7 -7 -7 -------- Run | Yrd Mat Min Mat Min Exi Min Mat Fac Gar Fac Hostile Shots Fired 695 | . 59 78 80 6 . 33 124 . 127 188 Missed 187 | . 21 16 20 1 . 9 36 . 32 52 Hits 508 | . 38 62 60 5 . 24 88 . 95 136 Melee 9 | . . . 4 2 . . . . . 3 Projectile 499 | . 38 62 56 3 . 24 88 . 95 133 Critical Strikes 16 | . . . . . . 1 5 . 3 7 Damage Taken 7776 | . 416 528 728 104 . 381 1464 . 1160 2995 Core 1376 | . 102 93 119 29 . 97 229 . 100 607 Absorbed by Shields . | . . . . . . . . . . . Redirected to Shielding 28 | . 28 . . . . . . . . . Ignored by Resistances 12 | . . . . . . . . . . 12 Regen/Repaired (Parts) 220 | . . . 30 . . . 160 . 30 . Core Remaining (%) 54 | 100 . 22 . . . 38 58 . . . Volleys Fired 365 | . 32 25 58 8 . 13 105 . 57 67 Largest 2 | . 2 2 2 2 . 2 2 . 2 2 Hottest 160 | . 100 93 130 130 . 140 115 . 160 160 Shots Fired 690 | . 60 50 112 14 . 20 205 . 111 118 Gun 550 | . 42 . 94 14 . 19 177 . 95 109 Cannon 127 | . 18 50 18 . . . 16 . 16 9 Launcher 13 | . . . . . . 1 12 . . . Special . | . . . . . . . . . . . Kinetic 73 | . 14 25 9 . . . . . 16 9 Thermal 397 | . 46 25 85 14 . 19 49 . 95 64 Explosive 12 | . . . . . . 1 11 . . . Electromagnetic 208 | . . . 18 . . . 145 . . 45 Robot Hit Streak 23 | . 6 7 22 11 . 16 23 . 21 15 Robot Miss Streak 8 | . 2 5 6 2 . 2 8 . 5 5 Penetration Max . | . . . . . . . . . . . Secondary Targets 6 | . . . 1 2 . 2 . . 1 . Max Gunslinging Chain 1 | . . . 1 1 . 1 . . 1 . Shots Hit Robots 517 | . 66 26 83 14 . 17 144 . 70 97 Core Hits 333 | . 16 8 80 25 . 23 67 . 44 70 Critical Kills 2 | . 2 . . . . . . . . . Critical Parts Destroyed 8 | . 5 . . . . . 1 . 2 . Critical Strikes 27 | . 7 . 2 . . 1 10 . 4 3 Burn 15 | . . . 2 . . 1 7 . 2 3 Corrupt 2 | . . . . . . . 2 . . . Smash 10 | . 7 . . . . . 1 . 2 . Melee Attacks 51 | . 33 . . . . . 10 . 8 . Impact 51 | . 33 . . . . . 10 . 8 . Slashing . | . . . . . . . . . . . Piercing . | . . . . . . . . . . . Sneak Attacks 10 | . 7 . . . . . 3 . . . Combat Hostiles 1 | . . . . . . . 1 . . . Follow-up Attacks . | . . . . . . . . . . . Damage Inflicted 11741 | . 1406 554 1330 262 . 549 3840 . 1871 1929 Guns 6793 | . 240 . 984 259 . 362 1901 . 1586 1461 Cannons 1655 | . 246 545 233 . . . 292 . 101 238 Explosions 1784 | . . . 77 . . 181 1272 . 51 203 Melee 1401 | . 914 . . . . . 354 . 133 . Ramming 108 | . 6 9 36 3 . 6 21 . . 27 Kinetic 789 | . 62 262 126 . . . . . 101 238 Thermal 6237 | . 424 283 958 259 . 362 987 . 1586 1378 Explosive 1085 | . . . . . . 181 853 . 51 . Electromagnetic 2121 | . . . 210 . . . 1625 . . 286 Impact 1401 | . 914 . . . . . 354 . 133 . Slashing . | . . . . . . . . . . . Piercing . | . . . . . . . . . . . Highest Corruption 24 | . . . . . . . 2 . 2 24 Average Corruption 5 | . . . . . . . 2 . 1 10 Corruption Purged . | . . . . . . . . . . . Corruption Blocked . | . . . . . . . . . . . Effects 137 | . . . . . . . 20 . 31 86 Message Errors 27 | . . . . . . . 7 . 5 15 Matter Fused 40 | . . . . . . . 4 . 10 26 Heat Flow Errors 16 | . . . . . . . 1 . 4 11 Energy Discharges 14 | . . . . . . . 2 . 2 10 Parts Rejected 1 | . . . . . . . . . 1 . Parts Fused 2 | . . . . . . . . . 1 1 Data Loss (minor) 15 | . . . . . . . 4 . 1 10 Data Loss (major) 3 | . . . . . . . . . 2 1 Misfires 8 | . . . . . . . 1 . 4 3 Alerts 3 | . . . . . . . 1 . 1 1 Weapon Failures 8 | . . . . . . . . . . 8 Overload Shots . | . . . . . . . . . . . Overflow Damage 620 | . 271 48 8 . . . 142 . 93 58 Projectiles 49 | . . 48 . . . . 1 . . . Explosions 96 | . . . 8 . . . 30 . . 58 Melee 475 | . 271 . . . . . 111 . 93 . Knockbacks 14 | . 6 5 . . . . . . 1 2 Impact 6 | . 6 . . . . . . . . . Kinetic 8 | . . 5 . . . . . . 1 2 Secondary . | . . . . . . . . . . . Self-Inflicted Damage 614 | . . . 42 . . . 69 . 66 437 Shots 11 | . . . 2 . . . 3 . 1 5 Rammed 10 | . . 2 3 2 . 2 1 . . . Targets Rammed 20 | . 2 4 3 2 . 2 3 . . 4 Kicked 7 | . 2 . . . . . 1 . . 4 Crushed 3 | . . 2 . . . . 1 . . . Highest Temperature 479 | . 178 346 319 365 . 479 163 . 402 401 Average Temperature 104 | . 62 158 78 184 . 214 18 . 89 127 Received Heat Transfer 2259 | . 186 45 165 27 . 171 549 . 384 732 Effects 27 | . . . . 3 . 10 . . 1 13 Shutdowns 2 | . . . . . . . . . 1 1 Interference 20 | . . . . 3 . 5 . . . 12 Damage (minor) 1 | . . . . . . 1 . . . . Damage (major) 4 | . . . . . . 4 . . . . Siege Activations . | . . . . . . . . . . . Martial Activations . | . . . . . . . . . . . Shielding Activations . | . . . . . . . . . . . Robots Disrupted . | . . . . . . . . . . . Combat Hostiles . | . . . . . . . . . . . Robots Corrupted 15 | . 4 . . . . . 10 . 1 . Combat Hostiles 8 | . 1 . . . . . 6 . 1 . Parts Fried 21 | . 4 . 2 . . . 13 . . 2 Impact Corruptions 22 | . 12 . . . . . 7 . 3 . Robots Melted 2 | . . . . . . . . . 1 1 Combat Hostiles 2 | . . . . . . . . . 1 1 Parts Melted 18 | . 1 . 2 . . 2 3 . 2 8 Heat Transferred 12096 | . 918 592 1563 325 . 631 2352 . 2986 2729 Parts Sabotaged . | . . . . . . . . . . . Parts Stolen . | . . . . . . . . . . . Parts Stripped . | . . . . . . . . . . . Power Chain Reactions 10 | . . . 2 . . . 8 . . . Alert | -11 -10 -10 -9 -9 -9 -8 -8 -7 -7 -7 ------- Run | Yrd Mat Min Mat Min Exi Min Mat Fac Gar Fac Maximum Alert Level 4 | . . . . . . . 2 1 4 2 Low Security (%) 67 | . 100 100 100 100 . 100 31 69 10 . Level 1 8 | . . . . . . . 44 30 14 2 Level 2 19 | . . . . . . . 24 . 33 97 Level 3 4 | . . . . . . . . . 34 . Level 4 1 | . . . . . . . . . 7 . Level 5 . | . . . . . . . . . . . High Security . | . . . . . . . . . . . Max Security . | . . . . . . . . . . . Peak Influence 1227 | . 130 129 150 70 . 105 570 252 1227 651 Initial 644 | . . . 39 53 . . . 252 56 644 Average 197 | . 40 20 47 7 . 12 296 158 617 487 Influence Increases 4717 | . 398 246 631 96 . 205 1220 19 1211 691 Destroy 0b10 Robot/C 2420 | . 200 160 360 80 . 160 620 . 500 340 Destroy 0b10 Robot/NC 235 | . 35 10 55 5 . . 95 . . 35 Destroy Leader 544 | . 58 30 110 10 . 30 170 . 30 106 Allied During Kill 34 | . . . . 1 . . . . 33 . Successful Hack 135 | . 15 . 36 . . . 44 19 21 . Disable Machine 195 | . . 15 15 . . . 60 . . 105 Anti-Garrison Action 550 | . . . . . . . . . 550 . Destroy Structure 259 | . . 1 10 . . 15 96 . 62 75 Partial Spotted 15 | . 15 . . . . . . . . . Lose Combat Pursuer 330 | . 75 30 45 . . . 135 . 15 30 Influence Decreases 4188 | . 398 146 593 234 . 205 664 494 65 1389 Entered New Map 1058 | . . . 61 85 . . . 304 25 583 Time Decay 2740 | . 398 126 502 129 . 185 584 190 . 626 Lost Part 350 | . . 20 30 . . 20 80 . 20 180 Lost Ally 40 | . . . . 20 . . . . 20 . Squads Dispatched 25 | . 3 . 3 1 . . 4 . . 14 Investigation 6 | . 1 . 1 . . . 2 . . 2 Extermination 5 | . . . . . . . . . . 5 Reinforcement 9 | . 2 . 2 . . . 2 . . 3 Assault 2 | . . . . 1 . . . . . 1 Garrison 3 | . . . . . . . . . . 3 Intercept . | . . . . . . . . . . . Searches Triggered . | . . . . . . . . . . . Construction Impeded 1 | . . . . . . . . . . 1 Haulers Reinforced 1 | . . . . . . . . . . 1 Active Scanning Responses . | . . . . . . . . . . . Cargo Convoy Interrupts . | . . . . . . . . . . . Stealth | -11 -10 -10 -9 -9 -9 -8 -8 -7 -7 -7 --------- Run | Yrd Mat Min Mat Min Exi Min Mat Fac Gar Fac Distress Signals 10 | . 3 . 2 . . . 3 . . 2 Communications Jammed . | . . . . . . . . . . . Distress Signals . | . . . . . . . . . . . Times Spotted 192 | . 28 10 23 7 . 6 61 . 25 32 Peak Tracking Total 6 | . 5 3 4 3 . 4 5 . 3 6 Tactical Retreats 17 | . 4 2 3 . . . 5 . 1 2 Traps | -11 -10 -10 -9 -9 -9 -8 -8 -7 -7 -7 ------- Run | Yrd Mat Min Mat Min Exi Min Mat Fac Gar Fac Traps Triggered 18 | . 2 . . . . . 2 . 6 8 Indirectly . | . . . . . . . . . . . Trap Hack Attempts . | . . . . . . . . . . . Triggered . | . . . . . . . . . . . Disarmed . | . . . . . . . . . . . Reprogrammed . | . . . . . . . . . . . Reused . | . . . . . . . . . . . Traps Extracted . | . . . . . . . . . . . Installed . | . . . . . . . . . . . Triggered . | . . . . . . . . . . . Machines | -11 -10 -10 -9 -9 -9 -8 -8 -7 -7 -7 ---------- Run | Yrd Mat Min Mat Min Exi Min Mat Fac Gar Fac Machines Disabled 18 | . 1 1 1 . . . 4 . 4 7 Max in Single Turn 4 | . 1 1 1 . . . 1 . 2 4 Garrison Relay 2 | . . . . . . . . . 2 . Phase Generator 1 | . . . . . . . . . 1 . Machines Repaired . | . . . . . . . . . . . Machines Dismantled . | . . . . . . . . . . . Machines Sabotaged . | . . . . . . . . . . . Overloaded Fab Kills . | . . . . . . . . . . . Hacking | -11 -10 -10 -9 -9 -9 -8 -8 -7 -7 -7 --------- Run | Yrd Mat Min Mat Min Exi Min Mat Fac Gar Fac Machines Accessed 39 | . 7 . 11 . 1 1 8 3 4 4 Terminals 30 | . 6 . 9 . . 1 6 2 4 2 Fabricators . | . . . . . . . . . . . Repair Stations 4 | . . . 1 . . . 2 . . 1 Recycling Units 1 | . 1 . . . . . . . . . Scanalyzers 2 | . . . 1 . . . . . . 1 Garrison Access 1 | . . . . . . . . 1 . . Total Hacks 111 | . 16 . 39 . 1 4 23 8 9 11 Successful 54 | . 6 . 23 . 1 1 11 5 2 5 Failed 57 | . 10 . 16 . . 3 12 3 7 6 Catastrophic 14 | . 5 . 2 . . . 3 . 1 3 Database Lockouts . | . . . . . . . . . . . Manual 62 | . 12 . 21 . 1 . 16 7 3 2 Terminals 85 | . 14 . 31 . . 4 18 7 9 2 Fabricators . | . . . . . . . . . . . Repair Stations 11 | . . . 2 . . . 5 . . 4 Recycling Units 2 | . 2 . . . . . . . . . Scanalyzers 11 | . . . 6 . . . . . . 5 Garrison Access 1 | . . . . . . . . 1 . . Terminal Hacks 27 | . 4 . 14 . 1 1 4 1 2 . Record 2 | . . . 1 . . 1 . . . . Robot Analysis 7 | . 1 . 6 . . . . . . . Prototype ID Bank 2 | . 1 . 1 . . . . . . . Open Door 1 | . . . . . . . . . 1 . Level Access Points 1 | . . . . . . . 1 . . . Branch Access Points 1 | . . . . . . . 1 . . . Emergency Access Points 1 | . . . . . . . . . 1 . Terminal Index 5 | . 1 . 2 . . . 1 1 . . Alert Level 1 | . . . 1 . . . . . . . Locate Traps 2 | . 1 . 1 . . . . . . . Transport Status 1 | . . . 1 . . . . . . . Hauler Manifests 1 | . . . 1 . . . . . . . Registered Components 1 | . . . . . . . 1 . . . Proto ID Catalog 1 | . . . . . 1 . . . . . Fabricator Hacks . | . . . . . . . . . . . Repair Station Hacks 6 | . . . 2 . . . 3 . . 1 Scan Component 4 | . . . 1 . . . 2 . . 1 Repair 2 | . . . 1 . . . 1 . . . Recycling Unit Hacks 2 | . 2 . . . . . . . . . Report Inventory 1 | . 1 . . . . . . . . . Retrieve Components 1 | . 1 . . . . . . . . . Scanalyzer 9 | . . . 5 . . . . . . 4 Insert Component 2 | . . . 1 . . . . . . 1 Analyze 3 | . . . 2 . . . . . . 1 Retrieve Study 4 | . . . 2 . . . . . . 2 Garrison Access Hacks 1 | . . . . . . . . 1 . . Unlock Access 1 | . . . . . . . . 1 . . Unauthorized Hacks 9 | . . . 2 . . . 4 3 . . Terminals 9 | . . . 2 . . . 4 3 . . Track 2 | . . . . . . . 1 1 . . Botnet 7 | . . . 2 . . . 3 2 . . Fabricators . | . . . . . . . . . . . Repair Stations . | . . . . . . . . . . . Recycling Units . | . . . . . . . . . . . Scanalyzers . | . . . . . . . . . . . Garrison Access . | . . . . . . . . . . . Data Cores Recovered . | . . . . . . . . . . . Used . | . . . . . . . . . . . Hacking Detections 33 | . 6 . 10 . . 1 7 2 3 4 Full Trace Events 3 | . . . 2 . . . 1 . . . Feedback Events . | . . . . . . . . . . . Feedback Blocked . | . . . . . . . . . . . Robot Schematics Acquired . | . . . . . . . . . . . Robots Built . | . . . . . . . . . . . Authchips . | . . . . . . . . . . . Time . | . . . . . . . . . . . Total Robot Build Rating . | . . . . . . . . . . . Part Schematics Acquired 2 | . . . 1 . . . . . . 1 Parts Built . | . . . . . . . . . . . Authchips . | . . . . . . . . . . . Time . | . . . . . . . . . . . Total Part Build Rating . | . . . . . . . . . . . Part Studies Acquired 3 | . . . 2 . . . . . . 1 Parts Repaired 2 | . . . 1 . . . 1 . . . Time 89 | . . . 51 . . . 38 . . . Parts Recycled . | . . . . . . . . . . . Recycled Matter . | . . . . . . . . . . . Retrieved Matter . | . . . . . . . . . . . Retrieved Components 6 | . 6 . . . . . . . . . Parts Scanalyzed 2 | . . . 1 . . . . . . 1 Part Schematics Acquired 2 | . . . 1 . . . . . . 1 Parts Damaged . | . . . . . . . . . . . Bothacking | -11 -10 -10 -9 -9 -9 -8 -8 -7 -7 -7 ------------ Run | Yrd Mat Min Mat Min Exi Min Mat Fac Gar Fac Used RIF Installer 1 | . . . . . . . . . 1 . Robots Hacked . | . . . . . . . . . . . Non-combat . | . . . . . . . . . . . Combat . | . . . . . . . . . . . Robot Hacks Applied . | . . . . . . . . . . . Relay Couplers Released 8 | . . . . . . . . . 8 . Machine Destruction 8 | . . . . . . . . . 8 . Fabnet Peak Effective % . | . . . . . . . . . . . Robots Rewired . | . . . . . . . . . . . Allies Hacked . | . . . . . . . . . . . Hacks Repelled . | . . . . . . . . . . . Allies | -11 -10 -10 -9 -9 -9 -8 -8 -7 -7 -7 -------- Run | Yrd Mat Min Mat Min Exi Min Mat Fac Gar Fac Total Allies 3 | . . . . 1 . . . . 2 . Largest Group 2 | . . . . 1 . . . . 2 . Highest-Rated Group 78 | . . . . 31 . . . . 78 . Highest-Rated Ally 39 | . . . . 31 . . . . 39 . Total Orders . | . . . . . . . . . . . Ally Attacks 63 | . . . . 4 . . . . 59 . Total Damage 861 | . . . . 83 . . . . 778 . Kills 11 | . . . . 1 . . . . 10 . Allies Corrupted . | . . . . . . . . . . . Allies Melted . | . . . . . . . . . . . Intel | -11 -10 -10 -9 -9 -9 -8 -8 -7 -7 -7 ------- Run | Yrd Mat Min Mat Min Exi Min Mat Fac Gar Fac Active Infowar (turns) 6370 | . . . 3121 1377 1356 17 . . . 499 Sensors 5871 | . . . 3121 1377 1356 17 . . . . Structural 499 | . . . . . . . . . . 499 Robot Analysis Total 7 | . 1 . 6 . . . . . . . Derelict Logs Recovered 2 | . . 1 . 1 . . . . . . Drone Launches . | . . . . . . . . . . . Drone Recoveries . | . . . . . . . . . . . Exploration | -11 -10 -10 -9 -9 -9 -8 -8 -7 -7 -7 ------------- Run | Yrd Mat Min Mat Min Exi Min Mat Fac Gar Fac Turns Passed 18933 | . 1583 2516 3671 1377 1356 1474 2125 398 2281 2152 Spaces Moved 6552 | 1 803 753 1034 420 424 442 597 197 991 890 Core 1 | . . . . . . . . . . 1 Treads 3680 | . 70 753 1034 420 424 442 537 . . . Legs 2871 | 1 733 . . . . . 60 197 991 889 Wheels . | . . . . . . . . . . . Hover . | . . . . . . . . . . . Flight . | . . . . . . . . . . . Fastest Speed 118 | 120 120 320 240 320 320 240 196 198 190 118 Average Speed 253 | 120 162 320 319 320 320 318 260 198 195 177 Slowest Speed 1700 | 120 400 320 320 320 320 320 320 198 198 1700 Overloaded Moves . | . . . . . . . . . . . Propulsion Burnouts . | . . . . . . . . . . . Robots Hopped . | . . . . . . . . . . . Potential Cave-ins . | . . . . . . . . . . . Cave-ins Triggered 2 | . . . . . . . . . . 2 Exploration Rate (%) 63 | 1 98 100 85 74 90 77 47 4 99 24 Regions Visited 10 Branch Regions 4 Pre-discovered Areas . | . . . . . . . . . . . Known Exits Taken 6 | . . . 1 1 1 1 1 1 . . Unknown Exits Taken 3 | 1 1 1 . . . . . . . . Scrap Searched 3 | . . 1 . 1 . 1 . . . . Spaces Dug 2 | . . . . . . . . . 2 . Terrain Destroyed 292 | . . 1 8 . . 17 109 . 72 85 Melee 2 | . . . . . . . . . 2 . Projectile 3 | . . 1 . . . 1 1 . . . AOE 287 | . . . 8 . . 16 108 . 70 85 Terrain Rammed . | . . . . . . . . . . . Walls Destroyed . | . . . . . . . . . . . Machines Disabled . | . . . . . . . . . . . Actions | -11 -10 -10 -9 -9 -9 -8 -8 -7 -7 -7 --------- Run | Yrd Mat Min Mat Min Exi Min Mat Fac Gar Fac Total 8131 | . 968 803 1303 440 425 483 941 206 1225 1337 Wait 754 | . 37 12 126 . . 22 167 . 95 295 Move 6543 | . 802 752 1033 419 423 441 596 197 990 890 Hop . | . . . . . . . . . . . Pick Up 120 | . 26 4 29 3 1 . 20 4 17 16 Fast Attach 20 | . 7 . 4 1 . . 1 . . 7 Attach 44 | . 1 2 6 . . 2 12 2 4 15 Detach . | . . . . . . . . . . . Swap 76 | . 11 1 11 2 . 3 16 1 17 14 Drop 113 | . 17 3 33 5 1 . 11 2 22 19 Fire 365 | . 32 25 58 8 . 13 105 . 57 67 Melee 51 | . 33 . . . . . 10 . 8 . Ram . | . . . . . . . . . . . Kick 7 | . 2 . . . . . 1 . . 4 Crush 13 | . . 4 3 2 . 2 2 . . . Escape Stasis 25 | . . . . . . . . . 15 10 Rewire . | . . . . . . . . . . . Trap . | . . . . . . . . . . . Miscellaneous . | . . . . . . . . . . . Route ------- -11/Scrapyard -10/Materials (discovered 4 exits: *Mat x3 / [*Min]) -10/Mines (discovered 3 exits: *Mat x2 / [*Sub]) -9/Materials (discovered 5 exits: *Mat x3 / *Min x2) -9/Mines (discovered 2 exits: *Mat / *Exi) -9/Exiles -8/Mines -8/Materials (discovered 3 exits: *Fac x3) -7/Factory (discovered 3 exits: *Fac x2 / Gar) -7/Garrison (discovered 3 exits: *Fac x3) -7/Factory (discovered 1 exit: *Fac) History --------- Turn | Location | Event 1 | -11/Scrapyard | Discovered new exit (range 0) 1 | -11/Scrapyard | Entered Materials 296 | -10/Materials | Discovered new exit (range 10) 350 | -10/Materials | Build established: Mutant 435 | -10/Materials | Discovered new exit (range 6) 984 | -10/Materials | Discovered new exit (range 12) 1023 | -10/Materials | Discovered new exit (range 15) 1584 | -10/Materials | Entered Mines 1595 | -10/Mines | Met a Derelict bent on vengeance 1663 | -10/Mines | Discovered new exit (range 10) 1726 | -10/Mines | Core integrity fell below 50% 2018 | -10/Mines | Discovered new exit (range 5) 2210 | -10/Mines | Found a Scrap Suit stashed away for nefarious purposes 2218 | -10/Mines | Found Scrap Suit 2696 | -10/Mines | Learned Materials security intel 2808 | -10/Mines | Discovered new exit (range 16) 3389 | -10/Mines | Found a hidden stash of uninstalled traps 4100 | -10/Mines | Entered Materials 4100 | -9/Materials | Evolved 2 slots: Utility x2 5078 | -9/Materials | Discovered new exit (range 10) 6071 | -9/Materials | Discovered new exit (range 13) 6336 | -9/Materials | Discovered new exit (range 15) 6550 | -9/Materials | Repaired Cld. Ion Engine 7030 | -9/Materials | Discovered new exit (range 8) 7534 | -9/Materials | Discovered new exit (range 14) 7621 | -9/Materials | Identified exit to Mines 7771 | -9/Materials | Entered Mines 8392 | -9/Mines | Met a Derelict testing a Signal Generator 8697 | -9/Mines | Discovered new exit (range 10) 8735 | -9/Mines | Identified exit to Materials 8921 | -9/Mines | Learned 4 Materials zone layouts 9001 | -9/Mines | Received a Rocket Launcher from a helpful Derelict 9132 | -9/Mines | Deemed a non-threat by the Exiles lab entrance 9135 | -9/Mines | Discovered new exit (range 5) 9145 | -9/Mines | Identified exit to Exiles 9148 | -9/Mines | Entered Exiles 9232 | -9/Exiles | Met 8R-AWN 9283 | -9/Exiles | Met EX-HEX 9392 | -9/Exiles | Met EX-BIN 9430 | -9/Exiles | Aligned with FarCom system 9433 | -9/Exiles | Given EX-Vault access code 9507 | -9/Exiles | Opened EX-Vault 9533 | -9/Exiles | Found Superbattery 9598 | -9/Exiles | Warned to stay clear of 0b10 Research branches 9688 | -9/Exiles | Met EX-DEC 9836 | -9/Exiles | Visited The Gauntlet 10465 | -9/Exiles | Discovered new exit (range 14) 10500 | -9/Exiles | Identified exit to Mines 10504 | -9/Exiles | Left Exiles lab with Superbattery 10504 | -9/Exiles | Entered Mines 10521 | -8/Mines | Core integrity fell below 50% 11920 | -8/Mines | Discovered exit to Materials (range 15) 11978 | -8/Mines | Entered Materials 11978 | -8/Materials | Evolved 2 slots: Propulsion x1, Utility x1 11979 | -8/Materials | Identified exit to Factory 12268 | -8/Materials | Destroyed 7 combat bots 13077 | -8/Materials | Lost 3 parts (1p2n) 14050 | -8/Materials | Repaired Nuclear Core 14103 | -8/Materials | Entered Factory 14103 | -7/Factory | Evolved 2 slots: Propulsion x2 14105 | -7/Factory | Discovered new exit (range 13) 14105 | -7/Factory | Discovered new exit (range 12) 14285 | -7/Factory | Identified exit to Factory 14501 | -7/Factory | Identified exit to Garrison 14501 | -7/Factory | Entered Garrison 14541 | -7/Garrison | Triggered checkpoint 14685 | -7/Garrison | Garrison Relay disabled 14849 | -7/Garrison | Rescued a captive Derelict 14849 | -7/Garrison | Rescued a captive Derelict 14959 | -7/Garrison | Phase Generator disabled 15063 | -7/Garrison | Triggered checkpoint 15171 | -7/Garrison | Triggered checkpoint 15180 | -7/Garrison | Discovered new exit (range 11) 15199 | -7/Garrison | Identified exit to Factory 15323 | -7/Garrison | Triggered checkpoint 15379 | -7/Garrison | Triggered checkpoint 15588 | -7/Garrison | Discovered exit to Factory (range 10) 15821 | -7/Garrison | Triggered checkpoint 15951 | -7/Garrison | Spotted B-75 Beast 15967 | -7/Garrison | Destroyed B-75 Beast 16079 | -7/Garrison | Build established: Scavenger-Mutant 16175 | -7/Garrison | Discovered exit to Factory (range 13) 16251 | -7/Garrison | Triggered checkpoint 16432 | -7/Garrison | Installed Relay Interface Framework 16590 | -7/Garrison | Garrison Relay disabled 16782 | -7/Garrison | Entered Factory 17182 | -7/Factory | First assault squad dispatched 17298 | -7/Factory | System corruption reached 10% 17443 | -7/Factory | Discovered exit to Factory (range 9) 18590 | -7/Factory | Garrison activated, responded to threat 18645 | -7/Factory | Lost 3 parts (1p1n1w) 18865 | -7/Factory | Core integrity fell below 50% 18932 | -7/Factory | Crushed by falling debris 18932 | -7/Factory | Core integrity fell below 20% 18935 | -7/Factory | Crushed by falling debris 18935 | -7/Factory | Smashed by cave-in Last Messages --------------- 18929_ K-01 Serf destroyed. 18929_ K-01 Serf collects debris. 18930_ U-05 Engineer lays Concrete. 18930_ U-05 Engineer builds a Wall. 18931_ Assembly Bed disabled. 18931_ U-05 Engineer builds a Wall. 18932_ The unstable cave ceiling collapses. 18932_ Crushed by falling debris. 18932_ Lightning Gun destroyed. 18932_ System corrupted by crushing effect (+2). 18932_ Carbon-fiber Leg destroyed. 18932_ System corrupted by crushing effect (+4). 18932_ K-01 Serf collects debris. 18933_ K-01 Serf destroyed. 18934_ G-47 Trooper knocked back. 18934_ U-05 Engineer builds a Wall. 18935_ The unstable cave ceiling collapses. 18935_ Crushed by falling debris. 18935_ Aluminum Leg destroyed. 18935_ System corrupted by crushing effect (+5). Map ----- +----------------------------------------------------+ | # + + =]] """ # #?# ???????? | | ######+### % ## # #?#????????? | | ###### #?###### ## # ???????????? | | #??????# #########+####/##??????????????? | | ######## #??????? ????????????????? | | #?????? ????????????????? | | #????? """????????????????? | | #???? """????????????????? | | #### """ """????????????? | | ############ ???????????? | | ???????????# ???????????? | | ???????????# ### T## #???????????????? | | ???????????# #?#######k##########????????????????? | | ???????#####+##### #???????????????????????? | | ???????# ## #???????????????????????? | | ???????# ## #???????????????????????? | | ???????# """" ## #???????????????????????? | | ???????# """" ## ###?????????????????????? | | ???????# """" # ! #?????????????????????? | | ???????# """" #*%= # ######????????????????? | | ???????# """ # = # # #????????????????? | | ???????# """" # # ##????????????????? | | ???????# " !# ;;;;##???????????????? | | ??????????#?+#### su# ;#???????????????? | | ???????? w # # ##=%= ;#???????????????? | | ??????? ##### ## @ ;#???????????????? | | ???????? = [ ;#???????????????? | | ???????? ########;;g ##???????????????? | | ????????? w?# ==* g; #????????????????? | | ?????????## ???# %""""g#;;;;###????????????????? | | ??????????#?????# =%"""" ######??????????????????? | | ????????????????# ="""" #???????????????????????? | | ??????????????? + """" #???????????????????????? | | ?????????????? # """" #???????????????????????? | | ????????????? # """" #???????????????????????? | | ???????????? ?# ?? #???????????????????????? | | ??????????? ??# ]??? #???????????????????????? | | ??????????# ???####???###???????????????????????? | | ??????????# ?????????????????????????????????????? | | ??????????#????????h?????????????????????????????? | | ?????????????????????????????????????????????????? | | ?????????????????????????????????????????????????? | | ?????????????????????????????????????????????????? | | ?????????????????????????????????????????????????? | | ?????????????????????????????????????????????????? | | ?????????????????????????????????????????????????? | | ?????????????????????????????????????????????????? | | ?????????????????????????????????????????????????? | | ?????????????????????????????????????????????????? | | ?????????????????????????????????????????????????? | +----------------------------------------------------+ Best States ------------- Heat Dissipation 72 Energy Generation 21 Energy Capacity 290 Matter Stores 300 Matter Capacity 300 Sight Range 16 Robot Scan Range 15 Terrain Scan Density 10 Additional Mass Support 9 Base Temperature (-) 100 Armor Coverage 375 Resistance: TH 10 Power Shielding 33 Weapon Shielding 33 Evasion (%) 55 Targeting Accuracy 8 Recoil Reduction 3 Particle Charging 20 Authchip Count 2 Item Schematics ----------------- Hrd. Light Armor Plating | -9/Materials | Scanalyzed Imp. Carbon-fiber Leg | -7/Factory | Scanalyzed Robot Schematics ------------------ None Fabricated ------------ Nothing Repaired ---------- Cld. Ion Engine | 72% | -9/Materials Nuclear Core | 18% | -8/Materials Studied --------- EM Pulse Gun | -9/Materials | Hacked Hvy. EM Pulse Gun | -9/Materials | Hacked Imp. Carbon-fiber Leg | -7/Factory | Hacked Alien Tech Used ----------------- None Achievements -------------- A Problem For Future Me DIY Cooler Challenges ------------ None Game ------ Seed ThrusterStrikeMegashotty Manual? 0 Play Time 02:14:00 Cumulative 73.1 hours Start 2026.01.20 @ 19:07:58 End 2026.01.21 @ 18:40:43 Sessions 5 Manual Loads 0 Difficulty Rogue Special Mode None Game No. 82 Rogue 82 Adventurer 0 Explorer 0 Win Type - Total 1 Types 1/0/0/0/0/0/0/0/0/0 Lore% 26 Gallery% 36 Achievement% 29 Wizard Run 0 Options --------- Layout 0 ASCII 0 Keyboard 0 Movement Mouse Keybinds 0 Fullscreen 0 Font 16/SmallcapsGlow Map View 88x55 Zoom Use 0% Tactical HUD 1 Map Filters NONE Filters NONE Steam 1 RUN: 8b0ccc0f-1fff-49a0-a9ae-9b2b5e8e3e51